fUSD/lending_fUSD_20240319
["ID","MTS","AMOUNT","RATE_DAILY","PERIOD"]
[319590568,1710883910595,-500.0,0.00031506,2]
[319590569,1710883910604,-830.55,0.00031506,2]
[319590570,1710883910613,-4631.22,0.00031506,2]
[319590571,1710883910623,-2094.61,0.00031506,2]
[319590572,1710883910631,-62217.7,0.00031506,2]
[319590573,1710883910641,-10729.57,0.00031506,2]
[319590574,1710883910650,-27416.23,0.00031506,2]
[319590575,1710883910660,-7584.08,0.00031506,2]
[319590576,1710883910669,-543.94,0.00031506,2]
[319590577,1710883910678,-500.0,0.00031506,2]
[319590578,1710883910688,-5369.24,0.00031506,2]
[319590579,1710883910697,-4331.12,0.00031506,2]
[319590580,1710883910706,-1227.45,0.00031506,2]
[319590581,1710883910715,-1532.97,0.00031506,2]
[319590582,1710883910725,-500.0,0.00031506,2]
[319590583,1710883910734,-3357.98,0.00031506,2]
[319590584,1710883910744,-6187.66,0.00031506,2]
[319590585,1710883910754,-610.98126705,0.00031506,2]
[319590586,1710883910763,-613.33,0.00031506,2]
[319590587,1710883910773,-7088.3,0.00031506,2]
[319590588,1710883910783,-8882.1,0.00031506,2]
[319590589,1710883910793,-590.59020646,0.00031506,2]
[319590590,1710883910803,-3796.41,0.00031506,2]
[319590591,1710883910812,-500.0,0.00031506,2]
[319590592,1710883910822,-500.0,0.00031506,2]
[319590593,1710883910831,-1290.92,0.00031506,2]
[319590594,1710883910841,-607.31,0.00031506,2]
[319590595,1710883910850,-1016.18,0.00031506,2]
[319590596,1710883910860,-1917.48,0.00031506,2]
[319590597,1710883910869,-1875.01,0.00031506,2]
[319590598,1710883910879,-16905.48,0.00031506,2]
[319590599,1710883910888,-3172.03,0.00031506,2]
[319590600,1710883910898,-35692.07,0.00031506,2]
[319590601,1710883910907,-500.0,0.00031506,2]
[319590602,1710883910916,-1297.28,0.00031506,2]
[319590603,1710883910926,-1142.27,0.00031506,2]
[319590604,1710883911067,-855.8,0.00031506,2]
[319590605,1710883911078,-500.0,0.00031506,2]
[319590606,1710883911088,-913.73,0.00031506,2]
[319590607,1710883911098,-2234.13,0.00031506,2]
[319590608,1710883911108,-866.16,0.00031506,2]
[319590609,1710883911118,-17286.9,0.00031506,2]
[319590610,1710883911130,-4688.61,0.00031506,2]
[319590611,1710883911140,-500.0,0.00031506,2]
[319590612,1710883911150,-500.0,0.00031506,2]
[319590613,1710883911160,-455.53350624,0.00031506,2]
[319590614,1710883911170,-322.97498108,0.00031506,2]
[319590615,1710883911180,-1996.89,0.00031506,2]
[319590616,1710883911190,-768.83,0.00031506,2]
[319590617,1710883911199,-566.2,0.00031506,2]
[319590618,1710883911210,-2249.09,0.00031506,2]
[319590619,1710883911221,-12794.23,0.00031506,2]
[319590620,1710883911231,-965.87,0.00031506,2]
[319590621,1710883911241,-514.47,0.00031506,2]
[319590622,1710883911251,-500.0,0.00031506,2]
[319590623,1710883911261,-721.54,0.00031506,2]
[319590624,1710883911271,-5976.67,0.00031506,2]
[319590625,1710883911281,-2375.0,0.00031506,2]
[319590626,1710883911292,-500.0,0.00031506,2]
[319590627,1710883911304,-7791.7,0.00031506,2]
[319590628,1710883911313,-5055.25,0.00031506,2]
[319590629,1710883911323,-195.69,0.00031506,2]
[319590630,1710883911333,-222.032006,0.00031509,3]
[319590631,1710883911342,-222.032006,0.00031509,4]
[319590632,1710883911351,-434.02778,0.0003152,2]
[319590633,1710883911360,-340.28,0.0003159,2]
[319590634,1710883911370,-6447.0755401,0.0003163,3]
[319590635,1710883911379,-222.032006,0.00031769,3]
[319590636,1710883911389,-222.032006,0.00031769,4]
[319590637,1710883911398,-222.032006,0.00031779,4]
[319590638,1710883911407,-222.032006,0.00031779,3]
[319590639,1710883911416,-222.032006,0.00031779,4]
[319590640,1710883911427,-222.032006,0.00031779,3]
[319590641,1710883911438,-150.0,0.00031779,2]
[319590642,1710883911447,-150.0,0.00031779,2]
[319590643,1710883911457,-500.0,0.0003178,2]
[319590644,1710883911466,-500.0,0.0003178,2]
[319590645,1710883911475,-500.0,0.0003178,2]
[319590646,1710883911484,-160.46794979,0.0003178,2]
[319590647,1710883911493,-541.15,0.0003178,2]
[319590648,1710883911503,-500.0,0.0003178,2]
[319590649,1710883911512,-500.0,0.0003178,2]
[319590650,1710883911524,-500.0,0.0003178,2]
[319590651,1710883911533,-782.55,0.0003178,2]
[319590652,1710883911543,-1175.0,0.0003178,2]
[319590653,1710883911552,-813.24,0.0003178,2]
[319590654,1710883911561,-569.24,0.0003178,2]
[319590655,1710883911571,-798.81,0.0003178,2]
[319590656,1710883911580,-500.0,0.0003178,2]
[319590657,1710883911590,-500.0,0.0003178,2]
[319590658,1710883911599,-823.89,0.0003178,2]
[319590659,1710883911608,-500.0,0.0003178,2]
[319590660,1710883911619,-590.39,0.0003178,2]
[319590661,1710883911629,-621.72,0.0003178,2]
[319590662,1710883911639,-500.0,0.0003178,2]
[319590663,1710883911648,-500.0,0.0003178,2]
[319590664,1710883911658,-500.0,0.0003178,2]
[319590665,1710883911668,-500.0,0.0003178,2]
[319590666,1710883911677,-500.0,0.0003178,2]
[319590667,1710883911686,-500.0,0.0003178,2]
[319590668,1710883911696,-500.0,0.0003178,2]
[319590669,1710883911706,-500.0,0.0003178,2]
[319590670,1710883911715,-500.0,0.0003178,2]
[319590671,1710883911724,-500.0,0.0003178,2]
[319590672,1710883911733,-500.0,0.0003178,2]
[319590673,1710883911743,-750.91,0.0003178,2]
[319590674,1710883911752,-827.98,0.0003178,2]
[319590675,1710883911761,-500.0,0.0003178,2]
[319590676,1710883911771,-562.59,0.0003178,2]
[319590677,1710883911781,-998.0,0.0003178,2]
[319590678,1710883911790,-500.0,0.0003178,2]
[319590679,1710883911800,-570.65,0.0003178,2]
[319590680,1710883911810,-500.0,0.0003178,2]
[319590681,1710883911820,-500.0,0.0003178,2]
[319590682,1710883911829,-500.0,0.0003178,2]
[319590683,1710883911839,-1839.1,0.0003178,2]
[319590684,1710883911848,-500.0,0.0003178,2]
[319590685,1710883911858,-500.0,0.0003178,2]
[319590686,1710883911866,-500.0,0.0003178,2]
[319590687,1710883911875,-461.94222627,0.0003178,2]
[319590688,1710883911884,-500.0,0.0003178,2]
[319590689,1710883911894,-1032.08,0.0003178,2]
[319590690,1710883911904,-729.17,0.0003178,2]
[319590691,1710883911914,-500.0,0.0003178,2]
[319590692,1710883911923,-1913.06,0.0003178,2]
[319590693,1710883911933,-500.0,0.0003178,2]
[319590694,1710883911943,-500.0,0.0003178,2]
[319590695,1710883911953,-500.0,0.0003178,2]
[319590696,1710883911963,-1372.24,0.0003178,2]
[319590697,1710883911973,-500.0,0.0003178,2]
[319590698,1710883911982,-711.63,0.0003178,2]
[319590699,1710883911992,-500.0,0.0003178,2]
[319590700,1710883912001,-1163.5,0.0003178,2]
[319590701,1710883912011,-500.0,0.0003178,2]
[319590702,1710883912020,-500.0,0.0003178,2]
[319590703,1710883912030,-500.0,0.0003178,2]
[319590704,1710883912040,-500.0,0.0003178,2]
[319590705,1710883912050,-500.0,0.0003178,2]
[319590706,1710883912059,-500.0,0.0003178,2]
[319590707,1710883912068,-652.32,0.0003178,2]
[319590708,1710883912077,-500.0,0.0003178,2]
[319590709,1710883912087,-500.0,0.0003178,2]
[319590710,1710883912096,-500.0,0.0003178,2]
[319590711,1710883912105,-910.23,0.0003178,2]
[319590712,1710883912115,-500.0,0.0003178,2]
[319590713,1710883912126,-500.0,0.0003178,2]
[319590714,1710883912136,-389.780144,0.0003178,2]
[319590715,1710883912145,-740.28,0.0003178,2]
[319590716,1710883912155,-624.91,0.0003178,2]
[319590717,1710883912165,-500.0,0.0003178,2]
[319590718,1710883912175,-968.04,0.0003178,2]
[319590719,1710883912184,-500.0,0.0003178,2]
[319590720,1710883912194,-500.0,0.0003178,2]
[319590721,1710883912204,-500.0,0.0003178,2]
[319590722,1710883912214,-500.0,0.0003178,2]
[319590723,1710883912223,-832.42,0.0003178,2]
[319590724,1710883912233,-500.0,0.0003178,2]
[319590725,1710883912242,-500.0,0.0003178,2]
[319590726,1710883912251,-500.0,0.0003178,2]
[319590727,1710883912260,-500.0,0.0003178,2]
[319590728,1710883912270,-500.0,0.0003178,2]
[319590729,1710883912279,-510.18,0.0003178,2]
[319590730,1710883912288,-500.0,0.0003178,2]
[319590731,1710883912298,-1150.05,0.0003178,2]
[319590732,1710883912309,-500.0,0.0003178,2]
[319590733,1710883912318,-608.08,0.0003178,2]
[319590734,1710883912328,-505.97,0.0003178,2]
[319590735,1710883912338,-626.77,0.0003178,2]
[319590736,1710883912347,-1660.24,0.0003178,2]
[319590737,1710883912357,-500.0,0.0003178,2]
[319590738,1710883912367,-1083.97,0.0003178,2]
[319590739,1710883912376,-500.0,0.0003178,2]
[319590740,1710883912385,-500.0,0.0003178,2]
[319590741,1710883912394,-573.58,0.0003178,2]
[319590742,1710883912408,-500.0,0.0003178,2]
[319590743,1710883912418,-713.26,0.0003178,2]
[319590744,1710883912428,-524.58,0.0003178,2]
[319590745,1710883912437,-1659.61,0.0003178,2]
[319590746,1710883912447,-786.87,0.0003178,2]
[319590747,1710883912456,-987.6,0.0003178,2]
[319590748,1710883912464,-562.22,0.0003178,2]
[319590749,1710883912474,-884.6,0.0003178,2]
[319590750,1710883912483,-500.0,0.0003178,2]
[319590751,1710883912492,-509.12,0.0003178,2]
[319590752,1710883912501,-500.0,0.0003178,2]
[319590753,1710883912510,-1565.75,0.0003178,2]
[319590754,1710883912520,-704.58,0.0003178,2]
[319590755,1710883912529,-500.0,0.0003178,2]
[319590756,1710883912538,-500.0,0.0003178,2]
[319590757,1710883912548,-500.0,0.0003178,2]
[319590758,1710883912557,-500.0,0.0003178,2]
[319590759,1710883912566,-500.0,0.0003178,2]
[319590760,1710883912576,-1298.95,0.0003178,2]
[319590761,1710883912586,-1177.64,0.0003178,2]
[319590762,1710883912594,-500.0,0.0003178,2]
[319590763,1710883912603,-766.46,0.0003178,2]
[319590764,1710883912613,-500.0,0.0003178,2]
[319590765,1710883912622,-2115.61,0.0003178,2]
[319590766,1710883912631,-1208.26,0.0003178,2]
[319590767,1710883912640,-1208.9,0.0003178,2]
[319590768,1710883912650,-723.63,0.0003178,2]
[319590769,1710883912659,-766.73,0.0003178,2]
[319590770,1710883912668,-710.55,0.0003178,2]
[319590771,1710883912678,-755.48,0.0003178,2]
[319590772,1710883912687,-500.0,0.0003178,2]
[319590773,1710883912696,-500.0,0.0003178,2]
[319590774,1710883912705,-2700.32,0.0003178,2]
[319590775,1710883912714,-500.0,0.0003178,2]
[319590776,1710883912723,-996.42,0.0003178,2]
[319590777,1710883912732,-500.0,0.0003178,2]
[319590778,1710883912742,-963.09,0.0003178,2]
[319590779,1710883912751,-708.23,0.0003178,2]
[319590780,1710883912760,-698.72,0.0003178,2]
[319590781,1710883912770,-500.0,0.0003178,2]
[319590782,1710883912780,-1021.3,0.0003178,2]
[319590783,1710883912790,-535.49,0.0003178,2]
[319590784,1710883912800,-500.0,0.0003178,2]
[319590785,1710883912811,-4097.82,0.0003178,2]
[319590786,1710883912820,-1107.96,0.0003178,2]
[319590787,1710883912830,-588.9,0.0003178,2]
[319590788,1710883912840,-500.0,0.0003178,2]
[319590789,1710883912851,-500.0,0.0003178,2]
[319590790,1710883912860,-500.0,0.0003178,2]
[319590791,1710883912870,-678.64,0.0003178,2]
[319590792,1710883912880,-500.0,0.0003178,2]
[319590793,1710883912889,-500.0,0.0003178,2]
[319590794,1710883912899,-500.0,0.0003178,2]
[319590795,1710883912908,-500.0,0.0003178,2]
[319590796,1710883912917,-685.69,0.0003178,2]
[319590797,1710883912927,-751.92,0.0003178,2]
[319590798,1710883912936,-2201.35,0.0003178,2]
[319590799,1710883912945,-1806.15,0.0003178,2]
[319590800,1710883912955,-500.0,0.0003178,2]
[319590801,1710883912964,-1515.11,0.0003178,2]
[319590802,1710883912973,-1513.03,0.0003178,2]
[319590803,1710883912983,-500.0,0.0003178,2]
[319590804,1710883912993,-838.64,0.0003178,2]
[319590805,1710883913002,-693.29,0.0003178,2]
[319590806,1710883913012,-4074.4,0.0003178,2]
[319590807,1710883913021,-603.07,0.0003178,2]
[319590808,1710883913030,-638.83,0.0003178,2]
[319590809,1710883913040,-781.62,0.0003178,2]
[319590810,1710883913049,-500.0,0.0003178,2]
[319590811,1710883913059,-500.0,0.0003178,2]
[319590812,1710883913069,-500.0,0.0003178,2]
[319590813,1710883913078,-1180.36,0.0003178,2]
[319590814,1710883913088,-1494.04,0.0003178,2]
[319590815,1710883913097,-691.03,0.0003178,2]
[319590816,1710883913107,-500.0,0.0003178,2]
[319590817,1710883913116,-1058.59,0.0003178,2]
[319590818,1710883913128,-782.29,0.0003178,2]
[319590819,1710883913138,-500.0,0.0003178,2]
[319590820,1710883913147,-500.0,0.0003178,2]
[319590821,1710883913157,-2757.61,0.0003178,2]
[319590822,1710883913168,-1130.81,0.0003178,2]
[319590823,1710883913178,-934.19,0.0003178,2]
[319590824,1710883913187,-500.0,0.0003178,2]
[319590825,1710883913197,-502.71,0.0003178,2]
[319590826,1710883913208,-626.57,0.0003178,2]
[319590827,1710883913217,-500.0,0.0003178,2]
[319590828,1710883913227,-781.11,0.0003178,2]
[319590829,1710883913237,-505.09,0.0003178,2]
[319590830,1710883913247,-846.76,0.0003178,2]
[319590831,1710883913257,-912.33,0.0003178,2]
[319590832,1710883913267,-2582.04,0.0003178,2]
[319590833,1710883913277,-384.25651028,0.0003178,2]
[319590834,1710883913286,-1278.95,0.0003178,2]
[319590835,1710883913297,-1020.62,0.0003178,2]
[319590836,1710883913307,-1074.07,0.0003178,2]
[319590837,1710883913316,-500.0,0.0003178,2]
[319590838,1710883913326,-1342.47,0.0003178,2]
[319590839,1710883913335,-500.0,0.0003178,2]
[319590840,1710883913345,-500.0,0.0003178,2]
[319590841,1710883913355,-859.38,0.0003178,2]
[319590842,1710883913365,-869.06,0.0003178,2]
[319590843,1710883913375,-500.0,0.0003178,2]
[319590844,1710883913385,-500.0,0.0003178,2]
[319590845,1710883913394,-567.85,0.0003178,2]
[319590846,1710883913404,-500.0,0.0003178,2]
[319590847,1710883913414,-500.0,0.0003178,2]
[319590848,1710883913424,-540.58,0.0003178,2]
[319590849,1710883913434,-691.28,0.0003178,2]
[319590850,1710883913443,-500.0,0.0003178,2]
[319590851,1710883913453,-1048.73,0.0003178,2]
[319590852,1710883913462,-731.41,0.0003178,2]
[319590853,1710883913471,-1662.72,0.0003178,2]
[319590854,1710883913481,-795.79,0.0003178,2]
[319590855,1710883913491,-500.0,0.0003178,2]
[319590856,1710883913500,-500.0,0.0003178,2]
[319590857,1710883913510,-863.23,0.0003178,2]
[319590858,1710883913519,-1377.63,0.0003178,2]
[319590859,1710883913530,-500.0,0.0003178,2]
[319590860,1710883913539,-2750.0,0.0003178,2]
[319590861,1710883913549,-500.0,0.0003178,2]
[319590862,1710883913559,-150.0,0.0003178,2]
[319590863,1710883913569,-1320.23,0.0003178,2]
[319590864,1710883913579,-500.0,0.0003178,2]
[319590865,1710883913589,-852.1,0.0003178,2]
[319590866,1710883913599,-500.0,0.0003178,2]
[319590867,1710883913608,-500.0,0.0003178,2]
[319590868,1710883913618,-500.0,0.0003178,2]
[319590869,1710883913628,-500.0,0.0003178,2]
[319590870,1710883913637,-2264.1,0.0003178,2]
[319590871,1710883913648,-533.15,0.0003178,2]
[319590872,1710883913658,-500.0,0.0003178,2]
[319590873,1710883913668,-590.4,0.0003178,2]
[319590874,1710883913678,-768.62,0.0003178,2]
[319590875,1710883913688,-813.65,0.0003178,2]
[319590876,1710883913697,-1706.37,0.0003178,2]
[319590877,1710883913707,-500.0,0.0003178,2]
[319590878,1710883913716,-710.02,0.0003178,2]
[319590879,1710883913726,-951.49,0.0003178,2]
[319590880,1710883913736,-624.42,0.0003178,2]
[319590881,1710883913746,-601.06837026,0.0003178,2]
[319590882,1710883913756,-500.0,0.0003178,2]
[319590883,1710883913765,-500.0,0.0003178,2]
[319590884,1710883913774,-281.3845455,0.0003178,2]
[319590885,1710883913783,-1083.59,0.0003178,2]
[319590886,1710883913793,-1353.58,0.0003178,2]
[319590887,1710883913803,-500.0,0.0003178,2]
[319590888,1710883913813,-851.26,0.0003178,2]
[319590889,1710883913823,-797.1,0.0003178,2]
[319590890,1710883913832,-500.0,0.0003178,2]
[319590891,1710883913843,-1094.92,0.0003178,2]
[319590892,1710883913853,-875.48,0.0003178,2]
[319590893,1710883913862,-2365.74,0.0003178,2]
[319590894,1710883913871,-500.0,0.0003178,2]
[319590895,1710883913881,-1362.21,0.0003178,2]
[319590896,1710883913890,-1403.96,0.0003178,2]
[319590897,1710883913900,-500.0,0.0003178,2]
[319590898,1710883913909,-500.0,0.0003178,2]
[319590899,1710883913918,-590.08,0.0003178,2]
[319590900,1710883913928,-620.16,0.0003178,2]
[319590901,1710883913938,-506.75,0.0003178,2]
[319590902,1710883913947,-569.27,0.0003178,2]
[319590903,1710883913957,-2130.05,0.0003178,2]
[319590904,1710883913967,-518.16,0.0003178,2]
[319590905,1710883913977,-1766.0,0.0003178,2]
[319590906,1710883913987,-2685.94,0.0003178,2]
[319590907,1710883913998,-873.29,0.0003178,2]
[319590908,1710883914008,-2470.79,0.0003178,2]
[319590909,1710883914018,-500.0,0.0003178,2]
[319590910,1710883914028,-1534.58,0.0003178,2]
[319590911,1710883914037,-500.0,0.0003178,2]
[319590912,1710883914049,-500.0,0.0003178,2]
[319590913,1710883914058,-500.0,0.0003178,2]
[319590914,1710883914068,-1036.45,0.0003178,2]
[319590915,1710883914077,-512.06,0.0003178,2]
[319590916,1710883914086,-1470.65,0.0003178,2]
[319590917,1710883914096,-1385.11,0.0003178,2]
[319590918,1710883914106,-500.0,0.0003178,2]
[319590919,1710883914116,-500.0,0.0003178,2]
[319590920,1710883914127,-539.91,0.0003178,2]
[319590921,1710883914137,-892.09,0.0003178,2]
[319590922,1710883914147,-1041.1,0.0003178,2]
[319590923,1710883914157,-500.0,0.0003178,2]
[319590924,1710883914167,-4269.17,0.0003178,2]
[319590925,1710883914177,-500.0,0.0003178,2]
[319590926,1710883914186,-500.0,0.0003178,2]
[319590927,1710883914195,-500.0,0.0003178,2]
[319590928,1710883914207,-670.7,0.0003178,2]
[319590929,1710883914216,-1864.38,0.0003178,2]
[319590930,1710883914225,-618.06,0.0003178,2]
[319590931,1710883914235,-597.33,0.0003178,2]
[319590932,1710883914244,-2495.07,0.0003178,2]
[319590933,1710883914254,-4586.31,0.0003178,2]
[319590934,1710883914264,-1054.82,0.0003178,2]
[319590935,1710883914273,-1014.6,0.0003178,2]
[319590936,1710883914283,-500.0,0.0003178,2]
[319590937,1710883914293,-180.76333114,0.0003178,2]
[319590938,1710883914303,-500.0,0.0003178,2]
[319590939,1710883914312,-500.0,0.0003178,2]
[319590940,1710883914321,-500.0,0.0003178,2]
[319590941,1710883914331,-1337.58,0.0003178,2]
[319590942,1710883914340,-512.04,0.0003178,2]
[319590943,1710883914350,-677.62,0.0003178,2]
[319590944,1710883914359,-1526.76,0.0003178,2]
[319590945,1710883914369,-1259.98,0.0003178,2]
[319590946,1710883914379,-1566.09,0.0003178,2]
[319590947,1710883914388,-775.9,0.0003178,2]
[319590948,1710883914398,-500.0,0.0003178,2]
[319590949,1710883914407,-694.07,0.0003178,2]
[319590950,1710883914417,-2087.64,0.0003178,2]
[319590951,1710883914427,-511.94,0.0003178,2]
[319590952,1710883914436,-500.0,0.0003178,2]
[319590953,1710883914446,-500.0,0.0003178,2]
[319590954,1710883914455,-388.73970466,0.0003178,2]
[319590955,1710883914465,-1387.77,0.0003178,2]
[319590956,1710883914475,-3092.84,0.0003178,2]
[319590957,1710883914485,-2016.56,0.0003178,2]
[319590958,1710883914497,-4137.27,0.0003178,2]
[319590959,1710883914506,-500.0,0.0003178,2]
[319590960,1710883914516,-500.0,0.0003178,2]
[319590961,1710883914526,-1221.58,0.0003178,2]
[319590962,1710883914536,-887.17,0.0003178,2]
[319590963,1710883914547,-1339.53,0.0003178,2]
[319590964,1710883914557,-1141.5,0.0003178,2]
[319590965,1710883914566,-515.48,0.0003178,2]
[319590966,1710883914576,-522.54,0.0003178,2]
[319590967,1710883914586,-2224.93,0.0003178,2]
[319590968,1710883914595,-291.06157509,0.0003178,2]
[319590969,1710883914605,-755.91,0.0003178,2]
[319590970,1710883914615,-1238.68,0.0003178,2]
[319590971,1710883914624,-521.0,0.0003178,2]
[319590972,1710883914634,-1097.47,0.0003178,2]
[319590973,1710883914644,-500.0,0.0003178,2]
[319590974,1710883914653,-853.55,0.0003178,2]
[319590975,1710883914663,-1615.45,0.0003178,2]
[319590976,1710883914673,-735.47,0.0003178,2]
[319590977,1710883914683,-859.69,0.0003178,2]
[319590978,1710883914692,-500.0,0.0003178,2]
[319590979,1710883914702,-500.0,0.0003178,2]
[319590980,1710883914712,-1583.83,0.0003178,2]
[319590981,1710883914721,-500.0,0.0003178,2]
[319590982,1710883914731,-780.78,0.0003178,2]
[319590983,1710883914741,-500.0,0.0003178,2]
[319590984,1710883914750,-2133.33,0.0003178,2]
[319590985,1710883914760,-500.0,0.0003178,2]
[319590986,1710883914769,-500.0,0.0003178,2]
[319590987,1710883914778,-1323.94,0.0003178,2]
[319590988,1710883914788,-823.79,0.0003178,2]
[319590989,1710883914803,-500.0,0.0003178,2]
[319590990,1710883914813,-500.0,0.0003178,2]
[319590991,1710883914822,-500.0,0.0003178,2]
[319590992,1710883914832,-508.96,0.0003178,2]
[319590993,1710883914841,-1623.15,0.0003178,2]
[319590994,1710883914852,-500.0,0.0003178,2]
[319590995,1710883914861,-795.56,0.0003178,2]
[319590996,1710883914871,-240.10331549,0.0003178,2]
[319590997,1710883914881,-1065.61,0.0003178,2]
[319590998,1710883914890,-1468.41,0.0003178,2]
[319590999,1710883915107,-704.5,0.0003178,2]
[319591000,1710883915134,-1194.31,0.0003178,2]
[319591001,1710883915144,-500.0,0.0003178,2]
[319591002,1710883915153,-736.67,0.0003178,2]
[319591003,1710883915162,-1136.64,0.0003178,2]
[319591004,1710883915173,-1054.6,0.0003178,2]
[319591005,1710883915183,-500.0,0.0003178,2]
[319591006,1710883915192,-1431.34,0.0003178,2]
[319591007,1710883915201,-500.0,0.0003178,2]
[319591008,1710883915211,-961.6,0.0003178,2]
[319591009,1710883915220,-500.0,0.0003178,2]
[319591010,1710883915229,-2402.37,0.0003178,2]
[319591011,1710883915239,-500.0,0.0003178,2]
[319591012,1710883915248,-1716.71,0.0003178,2]
[319591013,1710883915257,-500.0,0.0003178,2]
[319591014,1710883915267,-1601.69,0.0003178,2]
[319591015,1710883915276,-500.0,0.0003178,2]
[319591016,1710883915285,-4667.46,0.0003178,2]
[319591017,1710883915295,-1218.63,0.0003178,2]
[319591018,1710883915305,-500.0,0.0003178,2]
[319591019,1710883915314,-500.0,0.0003178,2]
[319591020,1710883915324,-1581.23,0.0003178,2]
[319591021,1710883915333,-500.0,0.0003178,2]
[319591022,1710883915342,-843.91,0.0003178,2]
[319591023,1710883915351,-907.99,0.0003178,2]
[319591024,1710883915360,-500.0,0.0003178,2]
[319591025,1710883915370,-1444.08,0.0003178,2]
[319591026,1710883915379,-500.0,0.0003178,2]
[319591027,1710883915388,-1639.05,0.0003178,2]
[319591028,1710883915397,-2169.8,0.0003178,2]
[319591029,1710883915407,-643.36,0.0003178,2]
[319591030,1710883915416,-500.0,0.0003178,2]
[319591031,1710883915426,-1368.44,0.0003178,2]
[319591032,1710883915435,-1788.21,0.0003178,2]
[319591033,1710883915446,-500.0,0.0003178,2]
[319591034,1710883915456,-997.85,0.0003178,2]
[319591035,1710883915466,-500.0,0.0003178,2]
[319591036,1710883915475,-2227.94,0.0003178,2]
[319591037,1710883915485,-523.21,0.0003178,2]
[319591038,1710883915495,-443.99236041,0.0003178,2]
[319591039,1710883915505,-500.0,0.0003178,2]
[319591040,1710883915515,-500.0,0.0003178,2]
[319591041,1710883915524,-500.0,0.0003178,2]
[319591042,1710883915534,-500.0,0.0003178,2]
[319591043,1710883915543,-1062.54,0.0003178,2]
[319591044,1710883915556,-500.0,0.0003178,2]
[319591045,1710883915565,-2421.41,0.0003178,2]
[319591046,1710883915574,-500.0,0.0003178,2]
[319591047,1710883915584,-1427.8,0.0003178,2]
[319591048,1710883915592,-944.3,0.0003178,2]
[319591049,1710883915601,-721.9,0.0003178,2]
[319591050,1710883915610,-500.0,0.0003178,2]
[319591051,1710883915619,-807.72,0.0003178,2]
[319591052,1710883915628,-2085.28,0.0003178,2]
[319591053,1710883915637,-1209.88,0.0003178,2]
[319591054,1710883915646,-629.63,0.0003178,2]
[319591055,1710883915655,-500.0,0.0003178,2]
[319591056,1710883915665,-2677.15,0.0003178,2]
[319591057,1710883915674,-1860.63,0.0003178,2]
[319591058,1710883915684,-608.3,0.0003178,2]
[319591059,1710883915693,-2012.38,0.0003178,2]
[319591060,1710883915702,-500.0,0.0003178,2]
[319591061,1710883915712,-689.51,0.0003178,2]
[319591062,1710883915721,-3603.52,0.0003178,2]
[319591063,1710883915730,-2566.01,0.0003178,2]
[319591064,1710883915740,-1531.43,0.0003178,2]
[319591065,1710883915749,-546.93,0.0003178,2]
[319591066,1710883915758,-2355.47,0.0003178,2]
[319591067,1710883915767,-667.89,0.0003178,2]